[Event "21st Indian-chT Women 2023-24"]
[Site "Dharamsala"]
[Date "2024.04.03"]
[Round "6.2"]
[White "Shrivastava, Aditi"]
[Black "Mohota, Nisha"]
[Result "0-1"]
[ECO "C88"]
[WhiteElo "1608"]
[BlackElo "2122"]
[Annotator "RC"]
[PlyCount "78"]
[EventDate "2024.03.28"]
[EventType "team-tourn"]
[EventCountry "IND"]
[SourceTitle "playchess.com"]
[Source "ChessBase"]
[SourceQuality "1"]
[TimeControl "5400+30"]

1. e4 {[%emt 0:00:26]} e5 {[%emt 0:00:39]} 2. Nf3 {[%emt 0:00:06]} Nc6 {[%emt 0:00:07]} 3. Bb5 {[%emt 0:00:14]} a6 {[%emt 0:00:16]} 4. Ba4 {[%emt 0:00:14]} Nf6 {[%emt 0:00:11]} 5. O-O {[%emt 0:00:13]} d6 {[%emt 0:00:11]} 6. d4 {[%emt 0:02:29]} b5 {[%emt 0:00:18]} 7. Bb3 {[%emt 0:00:06]} Nxd4 {[%emt 0:00:26]} 8. Nxd4 {[%emt 0:00:56]} exd4 {[%emt 0:00:05]} 9. Bd5 {[%emt 0:06:18]} Nxd5 {[%emt 0:00:13]} 10. exd5 {[%emt 0:00:04]} Be7 {[%emt 0:00:19]} 11. Re1 {[%emt 0:02:12]} O-O {[%emt 0:00:29]} 12. Qxd4 {[%emt 0:00:14]} Bf5 {[%emt 0:05:10]} 13. Qd1 {[%emt 0:05:42]} Bf6 {[%emt 0:08:27]} 14. Nd2 {[%emt 0:03:19]} Re8 {[%emt 0:05:37]} 15. Rf1 {[%emt 0:06:19]} Qe7 {[%emt 0:06:16]} 16. Nf3 {[%emt 0:03:45]} Qe4 {[%emt 0:13:58]} 17. c3 {[%emt 0:09:14]} Qc4 {[%emt 0:03:20]} 18. Qb3 {[%emt 0:08:07]} Qg4 {[%emt 0:09:12]} 19. Be3 {[%emt 0:04:35]} Be4 {[%emt 0:04:14]} 20. Qd1 {[%emt 0:08:54]} Re5 {[%emt 0:05:28]} 21. Ne1 {[%emt 0:04:51]} Qxd1 {[%emt 0:03:23]} 22. Rxd1 {[%emt 0:00:06]} Rxd5 {[%emt 0:00:12]} 23. Rxd5 {[%emt 0:01:07]} Bxd5 {[%emt 0:02:30]} 24. Nc2 {[%emt 0:02:24]} Bxa2 {[%emt 0:00:00]} 25. Ra1 {[%emt 0:03:46]} Bc4 {[%emt 0:00:54]} 26. Ra5 {[%emt 0:03:32]} c5 {[%emt 0:02:33]} 27. Bf4 {[%emt 0:01:23]} Be5 {[%emt 0:04:01]} 28. Bxe5 {[%emt 0:00:45]} dxe5 {[%emt 0:00:02]} 29. g3 {[%emt 0:01:33]} h6 {[%emt 0:02:28]} 30. b4 {[%emt 0:01:10]} Bb3 {[%emt 0:03:12]} 31. Na3 {[%emt 0:02:26]} cxb4 {[%emt 0:03:01]} 32. cxb4 {[%emt 0:00:10]} Bd5 {[%emt 0:02:27]} 33. h3 {[%emt 0:01:39]} Rc8 {[%emt 0:04:06]} 34. g4 {[%emt 0:00:16]} Rc1+ {[%emt 0:03:04]} 35. Kh2 {[%emt 0:00:07]} Rh1+ {[%emt 0:00:26]} 36. Kg3 {[%emt 0:00:07]} Rg1+ {[%emt 0:00:14]} 37. Kh4 {[%emt 0:00:37]} g5+ {[%emt 0:00:40]} 38. Kh5 {[%emt 0:00:07]} Kg7 {[%emt 0:00:49]} 39. Nc2 {[%emt 0:01:14]} f6 {[%emt 0:00:48]} 0-1

[Event "21st Indian-chT Women 2023-24"]
[Site "Dharamsala"]
[Date "2024.04.03"]
[Round "6.3"]
[White "Soumya, Swaminathan"]
[Black "Varshita, Jain"]
[Result "1-0"]
[ECO "C42"]
[WhiteElo "2259"]
[BlackElo "1668"]
[Annotator "RC"]
[PlyCount "73"]
[EventDate "2024.03.28"]
[EventType "team-tourn"]
[EventCountry "IND"]
[SourceTitle "playchess.com"]
[Source "ChessBase"]
[SourceQuality "1"]
[TimeControl "5400+30"]

1. e4 {[%emt 0:00:34]} e5 {[%emt 0:00:09]} 2. Nf3 {[%emt 0:00:03]} Nf6 {[%emt 0:00:05]} 3. Nxe5 {[%emt 0:00:21]} d6 {[%emt 0:00:05]} 4. Nf3 {[%emt 0:00:06]} Nxe4 {[%emt 0:00:04]} 5. d4 {[%emt 0:00:12]} d5 {[%emt 0:00:05]} 6. Bd3 {[%emt 0:00:07]} Nc6 {[%emt 0:00:05]} 7. O-O {[%emt 0:00:16]} Be7 {[%emt 0:00:04]} 8. Nbd2 {[%emt 0:01:41]} Bf5 {[%emt 0:00:43]} 9. Re1 {[%emt 0:02:13]} Nxd2 {[%emt 0:00:25]} 10. Qxd2 {[%emt 0:00:22]} Bxd3 {[%emt 0:04:41]} 11. Qxd3 {[%emt 0:00:03]} O-O {[%emt 0:00:31]} 12. c3 {[%emt 0:16:50]} Bf6 {[%emt 0:04:38]} 13. Bf4 {[%emt 0:01:45]} Ne7 {[%emt 0:04:47]} 14. Re2 {[%emt 0:05:08]} Ng6 {[%emt 0:02:00]} 15. Bg3 {[%emt 0:00:29]} Qd7 {[%emt 0:00:57]} 16. Rae1 {[%emt 0:04:33]} c6 {[%emt 0:02:13]} 17. a4 {[%emt 0:12:54]} Rfe8 {[%emt 0:04:33]} 18. a5 {[%emt 0:01:04]} a6 {[%emt 0:01:25]} 19. b4 {[%emt 0:02:45]} Rxe2 {[%emt 0:00:23]} 20. Qxe2 {[%emt 0:00:02]} Kf8 {[%emt 0:01:16]} 21. Ne5 {[%emt 0:01:36]} Bxe5 {[%emt 0:04:13]} 22. dxe5 {[%emt 0:00:05]} Re8 {[%emt 0:02:13]} 23. Qh5 {[%emt 0:05:20]} Kg8 {[%emt 0:06:07]} 24. f4 {[%emt 0:05:59]} Ne7 {[%emt 0:10:02]} 25. Bf2 {[%emt 0:05:39]} Ng6 {[%emt 0:09:27]} 26. g3 {[%emt 0:03:18]} Re6 {[%emt 0:17:40]} 27. Qd1 {[%emt 0:12:50]} Ne7 {[%emt 0:05:31]} 28. Bc5 {[%emt 0:03:18]} Rh6 {[%emt 0:03:04]} 29. c4 {[%emt 0:03:28]} Qh3 {[%emt 0:06:45]} 30. Re2 {[%emt 0:04:04]} Nf5 {[%emt 0:00:50]} 31. cxd5 {[%emt 0:01:29]} Nxg3 {[%emt 0:00:33]} 32. Rg2 {[%emt 0:00:02]} Rg6 {[%emt 0:09:36]} 33. dxc6 {[%emt 0:01:26]} Ne2+ {[%emt 0:00:53]} 34. Qxe2 {[%emt 0:00:07]} Rxg2+ {[%emt 0:00:32]} 35. Qxg2 {[%emt 0:00:02]} Qxg2+ {[%emt 0:00:03]} 36. Kxg2 {[%emt 0:00:09]} bxc6 {[%emt 0:00:03]} 37. Kf3 {[%emt 0:00:19]} 1-0

[Event "21st Indian-chT Women 2023-24"]
[Site "Dharamsala"]
[Date "2024.04.03"]
[Round "6.4"]
[White "Kanishka, Choudhary"]
[Black "Salonika, Saina"]
[Result "0-1"]
[ECO "B23"]
[WhiteElo "1597"]
[BlackElo "2096"]
[Annotator "RC"]
[PlyCount "68"]
[EventDate "2024.03.28"]
[EventType "team-tourn"]
[EventCountry "IND"]
[SourceTitle "playchess.com"]
[Source "ChessBase"]
[SourceQuality "1"]
[TimeControl "5400+30"]

1. e4 {[%emt 0:00:14]} c5 {[%emt 0:00:06]} 2. Nc3 {[%emt 0:00:10]} d6 {[%emt 0:00:06]} 3. f4 {[%emt 0:00:12]} Nc6 {[%emt 0:00:07]} 4. Nf3 {[%emt 0:00:20]} g6 {[%emt 0:00:04]} 5. Bc4 {[%emt 0:00:26]} Bg7 {[%emt 0:00:07]} 6. O-O {[%emt 0:00:48]} e6 {[%emt 0:00:05]} 7. d3 {[%emt 0:00:50]} Nge7 {[%emt 0:00:06]} 8. a3 {[%emt 0:01:56]} O-O {[%emt 0:01:56]} 9. Qe1 {[%emt 0:01:23]} d5 {[%emt 0:02:45]} 10. exd5 {[%emt 0:04:24]} exd5 {[%emt 0:03:36]} 11. Ba2 {[%emt 0:01:06]} Nd4 {[%emt 0:05:04]} 12. Nxd4 {[%emt 0:29:19]} Bxd4+ {[%emt 0:01:13]} 13. Kh1 {[%emt 0:00:20]} Nf5 {[%emt 0:17:22]} 14. Bd2 {[%emt 0:15:50]} Re8 {[%emt 0:06:47]} 15. Qd1 {[%emt 0:01:11]} Ne7 {[%emt 0:05:28]} 16. Qf3 {[%emt 0:03:30]} Be6 {[%emt 0:01:10]} 17. Rae1 {[%emt 0:02:48]} Qd7 {[%emt 0:03:06]} 18. h3 {[%emt 0:07:47]} h5 {[%emt 0:05:35]} 19. Nd1 {[%emt 0:05:38]} Kg7 {[%emt 0:09:27]} 20. Bc3 {[%emt 0:02:50]} Nf5 {[%emt 0:01:33]} 21. Ne3 {[%emt 0:03:13]} Nxe3 {[%emt 0:08:14]} 22. Qxe3 {[%emt 0:01:37]} Bxc3 {[%emt 0:00:44]} 23. bxc3 {[%emt 0:00:22]} Rac8 {[%emt 0:01:57]} 24. Qc1 {[%emt 0:03:02]} b5 {[%emt 0:02:53]} 25. Qb2 {[%emt 0:01:26]} c4 {[%emt 0:00:59]} 26. Qb4 {[%emt 0:03:37]} Bxh3 {[%emt 0:00:51]} 27. Rg1 {[%emt 0:03:10]} Bxg2+ {[%emt 0:01:31]} 28. Kxg2 {[%emt 0:00:38]} Qg4+ {[%emt 0:00:04]} 29. Kf2 {[%emt 0:00:30]} Qxf4+ {[%emt 0:00:04]} 30. Kg2 {[%emt 0:00:11]} Qd2+ {[%emt 0:00:09]} 31. Kh1 {[%emt 0:00:21]} Rxe1 {[%emt 0:00:09]} 32. Rxe1 {[%emt 0:00:05]} Qxe1+ {[%emt 0:00:04]} 33. Kg2 {[%emt 0:00:06]} Re8 {[%emt 0:00:04]} 34. dxc4 {[%emt 0:00:19]} Re2+ {[%emt 0:00:07]} 0-1

[Event "21st Indian-chT Women 2023-24"]
[Site "Dharamsala"]
[Date "2024.04.03"]
[Round "6.5"]
[White "Singh, Neha"]
[Black "Gade Sharanya"]
[Result "1-0"]
[ECO "B31"]
[WhiteElo "1825"]
[BlackElo "1728"]
[Annotator "NA RC"]
[PlyCount "99"]
[EventDate "2024.03.28"]
[EventType "team-tourn"]
[EventCountry "IND"]
[SourceTitle "playchess.com"]
[Source "ChessBase"]
[SourceQuality "1"]
[TimeControl "5400+30"]

1. e4 {[%emt 0:00:03]} c5 {[%emt 0:00:05]} 2. Nf3 {[%emt 0:00:06]} Nc6 {[%emt 0:00:06]} 3. Bb5 {[%emt 0:00:24]} g6 {[%emt 0:00:07]} 4. O-O {[%emt 0:00:05]} Bg7 {[%emt 0:00:19]} 5. Re1 {[%emt 0:00:03]} Nf6 {[%emt 0:00:09]} 6. c3 {[%emt 0:00:14]} d5 {[%emt 0:01:19] B31: Sicilian: 2...Nc6 3 Bb5 g6.} 7. e5 {[%emt 0:00:47]} Nd7 {[%emt 0:00:54]} 8. d4 {[%emt 0:00:27]} O-O {[%emt 0:00:39]} 9. a4 {[%emt 0:02:15]} a6 {[%emt 0:02:45]} 10. Bf1 {[%emt 0:00:36]} Re8 {[%emt 0:05:31]} 11. Na3 {[%emt 0:00:53]} Nf8 {[%emt 0:01:44]} 12. Nc2 {[%emt 0:04:51]} Na5 {[%emt 0:07:02]} 13. dxc5 {[%emt 0:10:20]} Bg4 {[%emt 0:04:28]} 14. Ncd4 {[%emt 0:04:05]} Ne6 {[%emt 0:02:20]} 15. h3 {[%emt 0:03:46]} Bxf3 {[%emt 0:02:20]} 16. gxf3 {[%emt 0:04:09]} Nc6 {[%emt 0:01:00]} 17. Nxe6 {[%emt 0:02:58]} fxe6 {[%emt 0:00:54]} 18. f4 {[%emt 0:00:16]} Rf8 {[%emt 0:02:03]} 19. Qg4 {[%emt 0:02:00]} Qd7 {[%emt 0:00:41]} 20. Be3 {[%emt 0:00:58]} Rf7 {[%emt 0:06:21]} 21. h4 {[%emt 0:15:35]} Raf8 {[%emt 0:12:36]} 22. Bh3 {[%emt 0:01:07]} Rf5 {[%emt 0:00:48]} 23. Qg3 {[%emt 0:01:45]} R5f7 {[%emt 0:01:23]} 24. Qg5 {[%emt 0:03:51]} Kh8 {[%emt 0:01:58]} 25. Red1 {[%emt 0:03:10]} Rg8 {[%emt 0:02:58]} 26. b4 {[%emt 0:02:37]} h5 $18 {[%emt 0:06:44]} (26... Rf5 {was called for.}) 27. Bf1 {[%emt 0:13:10]} Rf5 {[%emt 0:01:17]} 28. Qg3 {[%emt 0:00:18]} Bh6 {[%emt 0:02:19]} 29. Kh1 {[%emt 0:04:30]} d4 {[%emt 0:04:05]} 30. b5 {[%emt 0:01:06]} Qc8 {[%emt 0:02:45]} 31. cxd4 {[%emt 0:00:32]} Nb4 {[%emt 0:00:20]} 32. Bh3 {[%emt 0:01:11]} Nd5 {[%emt 0:03:31]} 33. Bxf5 {[%emt 0:00:45]} gxf5 {[%emt 0:00:06]} 34. Qh2 {[%emt 0:00:30]} Qd7 {[%emt 0:05:00]} 35. Rg1 {[%emt 0:01:17]} Rg4 {[%emt 0:01:38]} 36. Rxg4 {[%emt 0:03:39]} hxg4 {[%emt 0:00:05]} 37. Rb1 {[%emt 0:02:18]} Nc3 {[%emt 0:01:22]} 38. Rb2 {[%emt 0:00:18]} Nxa4 {[%emt 0:00:25]} 39. Rb4 {[%emt 0:00:53]} axb5 {[%emt 0:00:44]} 40. Qg2 {[%emt 0:00:10]} Nc3 {[%emt 0:03:32]} 41. Qf1 {[%emt 0:01:52]} Qc6+ {[%emt 0:00:05]} 42. Kg1 {[%emt 0:00:20]} Qf3 {[%emt 0:10:09]} 43. Qg2 {[%emt 0:04:30]} Qc6 {[%emt 0:01:26]} 44. Qxc6 {[%emt 0:01:05]} bxc6 {[%emt 0:00:06]} 45. Rb3 {[%emt 0:00:24]} Na4 {[%emt 0:00:16]} 46. f3 {[%emt 0:00:41]} gxf3 {[%emt 0:01:40]} 47. Kf2 {[%emt 0:01:38]} Kh7 {[%emt 0:00:14]} 48. Kxf3 {[%emt 0:00:03]} Kg6 {[%emt 0:00:05]} 49. d5 {[%emt 0:01:32]} exd5 {[%emt 0:00:22]} 50. Rxb5 {[%emt 0:00:12]} 1-0

[Event "21st Indian-chT Women 2023-24"]
[Site "Dharamsala"]
[Date "2024.04.03"]
[Round "6.6"]
[White "Velpula Sarayu"]
[Black "Marium Fatima"]
[Result "1-0"]
[ECO "C11"]
[WhiteElo "2389"]
[BlackElo "1903"]
[Annotator "RC"]
[PlyCount "53"]
[EventDate "2024.03.28"]
[EventType "team-tourn"]
[EventCountry "IND"]
[SourceTitle "playchess.com"]
[Source "ChessBase"]
[SourceQuality "1"]
[TimeControl "5400+30"]

1. e4 {[%emt 0:00:26]} e6 {[%emt 0:00:04]} 2. d4 {[%emt 0:00:31]} d5 {[%emt 0:00:06]} 3. Nc3 {[%emt 0:00:29]} Nf6 {[%emt 0:00:06]} 4. e5 {[%emt 0:00:31]} Nfd7 {[%emt 0:00:05]} 5. f4 {[%emt 0:00:31]} c5 {[%emt 0:00:07]} 6. Nf3 {[%emt 0:00:30]} Nc6 {[%emt 0:00:07]} 7. Be3 {[%emt 0:00:29]} Be7 {[%emt 0:00:08]} 8. Qd2 {[%emt 0:00:31]} a6 {[%emt 0:00:33]} 9. dxc5 {[%emt 0:00:36]} Nxc5 {[%emt 0:00:21]} 10. O-O-O {[%emt 0:02:46]} b5 {[%emt 0:03:32]} 11. Qf2 {[%emt 0:00:33]} Nd7 {[%emt 0:01:46]} 12. Qg3 {[%emt 0:03:48]} g6 {[%emt 0:01:25]} 13. h4 {[%emt 0:04:25]} Qa5 {[%emt 0:03:29]} 14. Kb1 {[%emt 0:09:45]} h5 {[%emt 0:12:05]} 15. Bd3 {[%emt 0:05:44]} Bb7 {[%emt 0:02:21]} 16. Qh3 {[%emt 0:18:54]} Rc8 {[%emt 0:02:52]} 17. Nxd5 {[%emt 0:18:16]} exd5 {[%emt 0:04:37]} 18. e6 {[%emt 0:00:10]} Nf6 {[%emt 0:08:23]} 19. exf7+ {[%emt 0:01:40]} Kf8 {[%emt 0:09:16]} 20. Bxg6 {[%emt 0:02:23]} Ne4 {[%emt 0:05:44]} 21. Nd4 {[%emt 0:04:35]} Nd8 {[%emt 0:06:15]} 22. Qd7 {[%emt 0:03:56]} Nd6 {[%emt 0:15:17]} 23. Qe8+ {[%emt 0:00:52]} Kg7 {[%emt 0:00:06]} 24. Qxe7 {[%emt 0:00:30]} Kxg6 {[%emt 0:04:01]} 25. f5+ {[%emt 0:01:56]} Nxf5 {[%emt 0:01:01]} 26. Qg5+ {[%emt 0:00:27]} Kxf7 {[%emt 0:00:04]} 27. Qxf5+ {[%emt 0:00:04]} 1-0

[Event "21st Indian-chT Women 2023-24"]
[Site "Dharamsala"]
[Date "2024.04.03"]
[Round "6.7"]
[White "Garima Gaurav"]
[Black "Sai Mahati Alapati"]
[Result "1-0"]
[ECO "D45"]
[WhiteElo "1786"]
[BlackElo "2155"]
[Annotator "RC"]
[PlyCount "77"]
[EventDate "2024.03.28"]
[EventType "team-tourn"]
[EventCountry "IND"]
[SourceTitle "playchess.com"]
[Source "ChessBase"]
[SourceQuality "1"]
[TimeControl "5400+30"]

1. d4 {[%emt 0:00:07]} d5 {[%emt 0:00:21]} 2. c4 {[%emt 0:00:04]} c6 {[%emt 0:00:07]} 3. Nf3 {[%emt 0:00:05]} Nf6 {[%emt 0:00:08]} 4. Nc3 {[%emt 0:00:08]} e6 {[%emt 0:00:19]} 5. e3 {[%emt 0:00:05]} Nbd7 {[%emt 0:00:12]} 6. Qc2 {[%emt 0:00:15]} b6 {[%emt 0:00:18]} 7. Bd3 {[%emt 0:00:16]} Bb7 {[%emt 0:00:26]} 8. O-O {[%emt 0:00:30]} dxc4 {[%emt 0:01:32]} 9. Bxc4 {[%emt 0:00:11]} a6 {[%emt 0:00:44]} 10. Rd1 {[%emt 0:02:32]} b5 {[%emt 0:05:19]} 11. Be2 {[%emt 0:00:37]} c5 {[%emt 0:17:02]} 12. a3 {[%emt 0:10:04]} Be7 {[%emt 0:12:18]} 13. dxc5 {[%emt 0:07:33]} Bxc5 {[%emt 0:00:39]} 14. b4 {[%emt 0:00:53]} Ba7 {[%emt 0:07:29]} 15. a4 {[%emt 0:04:25]} bxa4 {[%emt 0:06:53]} 16. Qxa4 {[%emt 0:00:55]} Qc7 {[%emt 0:01:07]} 17. Bb2 {[%emt 0:05:49]} O-O {[%emt 0:02:33]} 18. Rac1 {[%emt 0:03:02]} Nb6 {[%emt 0:03:46]} 19. Qa5 {[%emt 0:06:38]} Qe7 {[%emt 0:02:05]} 20. b5 {[%emt 0:03:43]} Bxf3 {[%emt 0:02:49]} 21. Ba3 {[%emt 0:01:50]} Qe8 {[%emt 0:02:03]} 22. Bxf3 {[%emt 0:01:40]} Nc4 {[%emt 0:00:52]} 23. Qxa6 {[%emt 0:03:38]} Nxa3 {[%emt 0:04:51]} 24. Bxa8 {[%emt 0:00:16]} Qxa8 {[%emt 0:01:10]} 25. Qxa3 {[%emt 0:00:23]} Ng4 {[%emt 0:01:57]} 26. Ra1 {[%emt 0:03:04]} Qb8 {[%emt 0:01:27]} 27. Qxa7 {[%emt 0:03:25]} Qxh2+ {[%emt 0:00:08]} 28. Kf1 {[%emt 0:00:03]} Qh1+ {[%emt 0:00:56]} 29. Ke2 {[%emt 0:00:06]} Qxg2 {[%emt 0:00:04]} 30. e4 {[%emt 0:02:27]} Ne5 {[%emt 0:02:20]} 31. Qe3 {[%emt 0:00:54]} Qg4+ {[%emt 0:01:22]} 32. f3 {[%emt 0:00:24]} Qg6 {[%emt 0:00:34]} 33. b6 {[%emt 0:03:55]} Nc4 {[%emt 0:00:06]} 34. Qf2 {[%emt 0:01:37]} f5 {[%emt 0:02:08]} 35. b7 {[%emt 0:02:16]} fxe4 {[%emt 0:00:44]} 36. Nxe4 {[%emt 0:00:17]} Qh5 {[%emt 0:03:46]} 37. Ra8 {[%emt 0:00:51]} Qb5 {[%emt 0:01:12]} 38. Rxf8+ {[%emt 0:00:08]} Kxf8 {[%emt 0:00:01]} 39. Qc5+ {[%emt 0:00:10]} 1-0

[Event "21st Indian-chT Women 2023-24"]
[Site "Dharamsala"]
[Date "2024.04.04"]
[Round "7.1"]
[White "Abishna Anojan"]
[Black "Vishwa Vasnawala"]
[Result "0-1"]
[ECO "C54"]
[WhiteElo "1635"]
[BlackElo "2111"]
[Annotator "RC"]
[PlyCount "60"]
[EventDate "2024.03.28"]
[EventType "team-tourn"]
[EventCountry "IND"]
[SourceTitle "playchess.com"]
[Source "ChessBase"]
[SourceQuality "1"]
[TimeControl "5400+30"]

1. e4 {[%emt 0:00:03]} e5 {[%emt 0:00:04]} 2. Nf3 {[%emt 0:00:04]} Nc6 {[%emt 0:00:04]} 3. Bc4 {[%emt 0:00:04]} Bc5 {[%emt 0:00:04]} 4. c3 {[%emt 0:00:06]} Nf6 {[%emt 0:00:04]} 5. d3 {[%emt 0:00:06]} a6 {[%emt 0:00:12]} 6. a4 {[%emt 0:00:05]} d6 {[%emt 0:00:40]} 7. h3 {[%emt 0:00:06]} h6 {[%emt 0:00:50]} 8. b4 {[%emt 0:00:44]} Ba7 {[%emt 0:03:56]} 9. Nbd2 {[%emt 0:01:06]} O-O {[%emt 0:01:39]} 10. O-O {[%emt 0:00:24]} Ne7 {[%emt 0:06:37]} 11. Re1 {[%emt 0:00:46]} Ng6 {[%emt 0:01:09]} 12. Nf1 {[%emt 0:00:06]} c6 {[%emt 0:05:00]} 13. d4 {[%emt 0:05:03]} exd4 {[%emt 0:08:40]} 14. Nxd4 {[%emt 0:02:13]} d5 {[%emt 0:23:08]} 15. exd5 {[%emt 0:08:16]} Nxd5 {[%emt 0:00:45]} 16. Bxd5 {[%emt 0:02:30]} Qxd5 {[%emt 0:01:26]} 17. Be3 {[%emt 0:00:52]} Nh4 {[%emt 0:04:04]} 18. f3 {[%emt 0:14:46]} Bxh3 {[%emt 0:10:30]} 19. Re2 {[%emt 0:45:55]} Nxg2 {[%emt 0:11:04]} 20. Rxg2 {[%emt 0:00:14]} Bxg2 {[%emt 0:00:07]} 21. Kxg2 {[%emt 0:00:04]} Rfe8 {[%emt 0:01:16]} 22. Qd3 {[%emt 0:04:26]} Rad8 {[%emt 0:05:26]} 23. Qf5 {[%emt 0:02:12]} Re5 {[%emt 0:04:34]} 24. Qg4 {[%emt 0:00:24]} h5 {[%emt 0:01:18]} 25. Qh4 {[%emt 0:00:40]} Rde8 {[%emt 0:01:10]} 26. Kf2 {[%emt 0:01:21]} Qc4 {[%emt 0:01:07]} 27. f4 {[%emt 0:02:41]} Rxe3 {[%emt 0:04:02]} 28. Nxe3 {[%emt 0:00:11]} Qxc3 {[%emt 0:00:25]} 29. Re1 {[%emt 0:02:08]} Bxd4 {[%emt 0:00:28]} 30. Qg3 {[%emt 0:00:13]} Qxe1+ {[%emt 0:00:47]} 0-1

[Event "21st Indian-chT Women 2023-24"]
[Site "Dharamsala"]
[Date "2024.04.04"]
[Round "7.2"]
[White "Gomes, Mary Ann"]
[Black "Jayashree, P.K."]
[Result "1-0"]
[ECO "D02"]
[WhiteElo "2322"]
[BlackElo "1846"]
[Annotator "RC"]
[PlyCount "79"]
[EventDate "2024.03.28"]
[EventType "team-tourn"]
[EventCountry "IND"]
[SourceTitle "playchess.com"]
[Source "ChessBase"]
[SourceQuality "1"]
[TimeControl "5400+30"]

1. Nf3 {[%emt 0:00:15]} d5 {[%emt 0:00:00]} 2. g3 {[%emt 0:00:28]} Nc6 {[%emt 0:00:12]} 3. d4 {[%emt 0:00:31]} Nf6 {[%emt 0:00:32]} 4. Bg2 {[%emt 0:00:07]} Bf5 {[%emt 0:00:32]} 5. O-O {[%emt 0:00:20]} e6 {[%emt 0:00:33]} 6. c4 {[%emt 0:02:17]} Be7 {[%emt 0:04:52]} 7. Nc3 {[%emt 0:02:06]} O-O {[%emt 0:00:28]} 8. Ne5 {[%emt 0:03:30]} Ne4 {[%emt 0:07:37]} 9. Nxc6 {[%emt 0:00:37]} bxc6 {[%emt 0:00:05]} 10. Nxe4 {[%emt 0:00:57]} Bxe4 {[%emt 0:00:11]} 11. Bxe4 {[%emt 0:12:18]} dxe4 {[%emt 0:00:06]} 12. Be3 {[%emt 0:00:09]} Bg5 {[%emt 0:02:16]} 13. Qd2 {[%emt 0:01:02]} Bxe3 {[%emt 0:00:30]} 14. Qxe3 {[%emt 0:00:05]} f5 {[%emt 0:08:17]} 15. f3 {[%emt 0:00:05]} exf3 {[%emt 0:00:15]} 16. exf3 {[%emt 0:00:17]} Qd6 {[%emt 0:03:59]} 17. f4 {[%emt 0:00:07]} Rf6 {[%emt 0:02:05]} 18. Rad1 {[%emt 0:01:10]} a5 {[%emt 0:02:52]} 19. Rfe1 {[%emt 0:02:48]} Qb4 {[%emt 0:05:43]} 20. Qc3 {[%emt 0:06:02]} c5 {[%emt 0:05:56]} 21. Qxb4 {[%emt 0:05:30]} axb4 {[%emt 0:01:23]} 22. dxc5 {[%emt 0:00:08]} Rxa2 {[%emt 0:00:16]} 23. Rd2 {[%emt 0:00:05]} h6 {[%emt 0:09:05]} 24. h4 {[%emt 0:05:46]} g5 {[%emt 0:09:17]} 25. h5 {[%emt 0:00:12]} gxf4 {[%emt 0:02:18]} 26. gxf4 {[%emt 0:00:06]} Ra5 {[%emt 0:08:53]} 27. Rd8+ {[%emt 0:12:14]} Rf8 {[%emt 0:01:17]} 28. Rxf8+ {[%emt 0:00:37]} Kxf8 {[%emt 0:00:06]} 29. Rxe6 {[%emt 0:00:03]} Rxc5 {[%emt 0:02:53]} 30. b3 {[%emt 0:00:06]} Kg7 {[%emt 0:01:14]} 31. Ra6 {[%emt 0:01:44]} Kf7 {[%emt 0:04:09]} 32. Kf2 {[%emt 0:00:13]} Ke7 {[%emt 0:00:05]} 33. Ke3 {[%emt 0:00:19]} Kd7 {[%emt 0:00:13]} 34. Kd4 {[%emt 0:01:01]} Rc6 {[%emt 0:00:10]} 35. Rxc6 {[%emt 0:00:04]} Kxc6 {[%emt 0:00:03]} 36. Ke5 {[%emt 0:00:05]} Kc5 {[%emt 0:01:13]} 37. Kxf5 {[%emt 0:00:06]} Kd4 {[%emt 0:00:04]} 38. Ke6 {[%emt 0:00:05]} Kc3 {[%emt 0:00:07]} 39. f5 {[%emt 0:00:06]} Kxb3 {[%emt 0:00:05]} 40. f6 {[%emt 0:00:03]} 1-0

[Event "21st Indian-chT Women 2023-24"]
[Site "Dharamsala"]
[Date "2024.04.04"]
[Round "7.3"]
[White "Rebecca Jesumarian"]
[Black "Mohota, Nisha"]
[Result "1/2-1/2"]
[ECO "E05"]
[WhiteElo "1873"]
[BlackElo "2122"]
[Annotator "RC"]
[PlyCount "72"]
[EventDate "2024.03.28"]
[EventType "team-tourn"]
[EventCountry "IND"]
[SourceTitle "playchess.com"]
[Source "ChessBase"]
[SourceQuality "1"]
[TimeControl "5400+30"]

1. d4 {[%emt 0:00:11]} Nf6 {[%emt 0:00:21]} 2. c4 {[%emt 0:00:06]} e6 {[%emt 0:00:00]} 3. Nf3 {[%emt 0:00:04]} d5 {[%emt 0:00:13]} 4. g3 {[%emt 0:00:16]} Be7 {[%emt 0:00:11]} 5. Bg2 {[%emt 0:00:09]} O-O {[%emt 0:00:20]} 6. O-O {[%emt 0:00:14]} dxc4 {[%emt 0:00:24]} 7. Qc2 {[%emt 0:01:00]} b5 {[%emt 0:00:25]} 8. Ne5 {[%emt 0:03:42]} Qxd4 {[%emt 0:04:33]} 9. Bxa8 {[%emt 0:05:39]} Qxe5 {[%emt 0:02:20]} 10. Bf3 {[%emt 0:02:30]} Na6 {[%emt 0:06:01]} 11. Bf4 {[%emt 0:01:58]} Nb4 {[%emt 0:04:15]} 12. Qc1 {[%emt 0:01:51]} Qf5 {[%emt 0:00:42]} 13. Nc3 {[%emt 0:02:52]} e5 {[%emt 0:12:28]} 14. Bg5 {[%emt 0:03:55]} Nd3 {[%emt 0:13:55]} 15. Bxf6 {[%emt 0:38:39]} Nxc1 {[%emt 0:17:44]} 16. Bxe7 {[%emt 0:00:04]} Re8 {[%emt 0:00:34]} 17. Raxc1 {[%emt 0:06:02]} Rxe7 {[%emt 0:01:19]} 18. Rfd1 {[%emt 0:04:42]} Re8 {[%emt 0:11:25]} 19. Bc6 {[%emt 0:04:40]} Rf8 {[%emt 0:01:08]} 20. Nxb5 {[%emt 0:00:27]} g6 {[%emt 0:02:57]} 21. Nxc7 {[%emt 0:02:40]} Be6 {[%emt 0:03:07]} 22. Nxe6 {[%emt 0:03:01]} Qxe6 {[%emt 0:02:06]} 23. Bd5 {[%emt 0:00:12]} Qb6 {[%emt 0:00:20]} 24. b3 {[%emt 0:06:05]} cxb3 {[%emt 0:00:44]} 25. Bxb3 {[%emt 0:00:56]} Rd8 {[%emt 0:00:51]} 26. Rxd8+ {[%emt 0:01:10]} Qxd8 {[%emt 0:00:17]} 27. Rc5 {[%emt 0:00:49]} Qe7 {[%emt 0:01:29]} 28. Rb5 {[%emt 0:01:55]} Kg7 {[%emt 0:03:41]} 29. Bd5 {[%emt 0:00:58]} Qd7 {[%emt 0:01:08]} 30. Ra5 {[%emt 0:04:46]} Qc7 {[%emt 0:00:52]} 31. Ra4 {[%emt 0:00:33]} Qc1+ {[%emt 0:05:01]} 32. Kg2 {[%emt 0:00:06]} Qd1 {[%emt 0:00:32]} 33. Bb3 {[%emt 0:00:22]} Qd7 {[%emt 0:00:38]} 34. Ra5 {[%emt 0:01:29]} Qc6+ {[%emt 0:01:05]} 35. Kg1 {[%emt 0:01:41]} Qc1+ {[%emt 0:01:06]} 36. Kg2 {[%emt 0:00:07]} Qc6+ {[%emt 0:00:14]} 1/2-1/2